fUST/lending_fUST_20260621
["ID","MTS","AMOUNT","RATE_DAILY","PERIOD"]
[425966415,1782051973000,-44.20402792,0.00010208,2]
[425966417,1782052001000,-1211.99,0.00010311,2]
[425966418,1782052027000,-340.006,0.00010311,2]
[425966419,1782052048000,-3440.86,0.00010311,2]
[425966421,1782052067000,-612.011,0.00010311,2]
[425966422,1782052082000,-164.153,0.00010208,2]
[425966424,1782052100000,-923.866,0.00010208,2]
[425966426,1782052120000,-1700.03,0.00010208,2]
[425966435,1782052163000,-652.811,0.00010208,2]
[425966436,1782052163000,-123.579,0.00010311,2]
[425966437,1782052178000,-436.315,0.00010311,2]
[425966439,1782052204000,-47.229,0.00010311,2]
[425966440,1782052204000,-133.263,0.00010415,2]
[425966474,1782052233000,-433.45811007,0.00010311,2]
[425966491,1782052234000,-2448.04,0.00010311,2]
[425966506,1782052238000,-174.96976961,0.00011178,2]
[425966530,1782052238000,-500.0,0.00016438,2]
[425966527,1782052238000,-500.0,0.00016438,2]
[425966532,1782052238000,-500.0,0.00016438,2]
[425966534,1782052238000,-500.0,0.00016438,2]
[425966544,1782052238000,-500.0,0.00016438,2]
[425966533,1782052238000,-500.0,0.00016438,2]
[425966535,1782052238000,-500.0,0.00016438,2]
[425966536,1782052238000,-500.0,0.00016438,2]
[425966540,1782052238000,-374.91122748,0.00016438,2]
[425966539,1782052238000,-500.0,0.00016438,2]
[425966538,1782052238000,-500.0,0.00016438,2]
[425966537,1782052238000,-500.0,0.00016438,2]
[425966541,1782052238000,-500.0,0.00016438,2]
[425966542,1782052238000,-500.0,0.00016438,2]
[425966543,1782052238000,-500.0,0.00016438,2]
[425966547,1782052238000,-500.0,0.00016438,2]
[425966546,1782052238000,-500.0,0.00016438,2]
[425966557,1782052238000,-500.0,0.00016438,2]
[425966548,1782052238000,-500.0,0.00016438,2]
[425966531,1782052238000,-613.84626154,0.00016438,2]
[425966529,1782052238000,-500.0,0.00016438,2]
[425966526,1782052238000,-312.01332517,0.00016437,2]
[425966525,1782052238000,-191.29107644,0.00016437,2]
[425966505,1782052238000,-17.737,0.00010415,2]
[425966504,1782052238000,-2118.50188993,0.00010311,2]
[425966507,1782052238000,-332.47127494,0.00011975,7]
[425966509,1782052238000,-648.52231142,0.00013862,2]
[425966508,1782052238000,-6607.55940748,0.00013862,2]
[425966510,1782052238000,-286.707287,0.00013988,2]
[425966512,1782052238000,-174.96976961,0.00014531,2]
[425966511,1782052238000,-1982.9458685,0.00014416,2]
[425966513,1782052238000,-389.24467952,0.00014741,2]
[425966551,1782052238000,-500.0,0.00016438,2]
[425966516,1782052238000,-150.05,0.00015294,2]
[425966517,1782052238000,-180.72631691,0.00015419,2]
[425966519,1782052238000,-3361.57111344,0.00016338,2]
[425966518,1782052238000,-775.327069,0.00015638,2]
[425966520,1782052238000,-989.62808591,0.00016338,2]
[425966515,1782052238000,-500.0,0.0001519,2]
[425966522,1782052238000,-500.0,0.00016349,2]
[425966521,1782052238000,-1549.50778856,0.00016338,2]
[425966523,1782052238000,-568.40531378,0.00016349,2]
[425966524,1782052238000,-500.0,0.00016437,2]
[425966514,1782052238000,-500.0,0.0001519,2]
[425966556,1782052238000,-500.0,0.00016438,2]
[425966545,1782052238000,-500.0,0.00016438,2]
[425966554,1782052238000,-500.0,0.00016438,2]
[425966579,1782052238000,-500.0,0.00016438,2]
[425966586,1782052238000,-500.0,0.00016438,2]
[425966582,1782052238000,-1387.2548,0.00016438,2]
[425966585,1782052238000,-500.0,0.00016438,2]
[425966588,1782052238000,-500.0,0.00016438,2]
[425966584,1782052238000,-500.0,0.00016438,2]
[425966587,1782052238000,-500.0,0.00016438,2]
[425966589,1782052238000,-500.0,0.00016438,2]
[425966583,1782052238000,-500.0,0.00016438,2]
[425966581,1782052238000,-500.0,0.00016438,2]
[425966580,1782052238000,-500.0,0.00016438,2]
[425966591,1782052238000,-500.0,0.00016438,2]
[425966598,1782052238000,-1000.0,0.00016577,2]
[425966597,1782052238000,-500.0,0.00016577,2]
[425966599,1782052238000,-500.0,0.00016577,2]
[425966593,1782052238000,-500.0,0.00016438,2]
[425966592,1782052238000,-500.0,0.00016438,2]
[425966594,1782052238000,-500.0,0.00016438,2]
[425966595,1782052238000,-500.0,0.00016577,2]
[425966552,1782052238000,-500.0,0.00016438,2]
[425966596,1782052238000,-500.0,0.00016577,2]
[425966578,1782052238000,-500.0,0.00016438,2]
[425966576,1782052238000,-500.0,0.00016438,2]
[425966590,1782052238000,-500.0,0.00016438,2]
[425966577,1782052238000,-500.0,0.00016438,2]
[425966555,1782052238000,-500.0,0.00016438,2]
[425966568,1782052238000,-500.0,0.00016438,2]
[425966550,1782052238000,-500.0,0.00016438,2]
[425966549,1782052238000,-500.0,0.00016438,2]
[425966553,1782052238000,-500.0,0.00016438,2]
[425966558,1782052238000,-500.0,0.00016438,2]
[425966559,1782052238000,-500.0,0.00016438,2]
[425966562,1782052238000,-500.0,0.00016438,2]
[425966563,1782052238000,-500.0,0.00016438,2]
[425966564,1782052238000,-500.0,0.00016438,2]
[425966560,1782052238000,-500.0,0.00016438,2]
[425966573,1782052238000,-500.0,0.00016438,2]
[425966565,1782052238000,-500.0,0.00016438,2]
[425966566,1782052238000,-500.0,0.00016438,2]
[425966567,1782052238000,-500.0,0.00016438,2]
[425966569,1782052238000,-500.0,0.00016438,2]
[425966574,1782052238000,-500.0,0.00016438,2]
[425966570,1782052238000,-479.44783022,0.00016438,2]
[425966571,1782052238000,-500.0,0.00016438,2]
[425966561,1782052238000,-500.0,0.00016438,2]
[425966572,1782052238000,-500.0,0.00016438,2]
[425966575,1782052238000,-500.0,0.00016438,2]
[425966653,1782052239000,-500.0,0.00016606,2]
[425966641,1782052239000,-500.0,0.00016578,2]
[425966636,1782052239000,-500.0,0.00016578,2]
[425966639,1782052239000,-500.0,0.00016578,2]
[425966640,1782052239000,-619.23236792,0.00016578,2]
[425966632,1782052239000,-500.0,0.00016578,2]
[425966629,1782052239000,-500.0,0.00016577,2]
[425966638,1782052239000,-500.0,0.00016578,2]
[425966633,1782052239000,-500.0,0.00016578,2]
[425966645,1782052239000,-500.0,0.00016578,2]
[425966635,1782052239000,-203.4484675,0.00016578,2]
[425966649,1782052239000,-500.0,0.00016606,2]
[425966655,1782052239000,-500.0,0.00016606,2]
[425966642,1782052239000,-500.0,0.00016578,2]
[425966647,1782052239000,-500.0,0.00016578,2]
[425966644,1782052239000,-500.0,0.00016578,2]
[425966646,1782052239000,-500.0,0.00016578,2]
[425966643,1782052239000,-500.0,0.00016578,2]
[425966650,1782052239000,-500.0,0.00016606,2]
[425966651,1782052239000,-500.0,0.00016606,2]
[425966652,1782052239000,-500.0,0.00016606,2]
[425966657,1782052239000,-500.0,0.00016606,2]
[425966665,1782052239000,-500.0,0.00016712,2]
[425966654,1782052239000,-500.0,0.00016606,2]
[425966658,1782052239000,-500.0,0.00016606,2]
[425966634,1782052239000,-500.0,0.00016578,2]
[425966648,1782052239000,-395.86030873,0.00016605,2]
[425966630,1782052239000,-229.56525872,0.00016577,2]
[425966612,1782052239000,-500.0,0.00016577,2]
[425966628,1782052239000,-500.0,0.00016577,2]
[425966656,1782052239000,-500.0,0.00016606,2]
[425966600,1782052239000,-500.0,0.00016577,2]
[425966601,1782052239000,-500.0,0.00016577,2]
[425966602,1782052239000,-500.0,0.00016577,2]
[425966603,1782052239000,-500.0,0.00016577,2]
[425966611,1782052239000,-500.0,0.00016577,2]
[425966608,1782052239000,-500.0,0.00016577,2]
[425966609,1782052239000,-500.0,0.00016577,2]
[425966615,1782052239000,-500.0,0.00016577,2]
[425966605,1782052239000,-500.0,0.00016577,2]
[425966607,1782052239000,-1000.0,0.00016577,2]
[425966606,1782052239000,-500.0,0.00016577,2]
[425966604,1782052239000,-500.0,0.00016577,2]
[425966631,1782052239000,-500.0,0.00016578,2]
[425966610,1782052239000,-500.0,0.00016577,2]
[425966613,1782052239000,-500.0,0.00016577,2]
[425966616,1782052239000,-500.0,0.00016577,2]
[425966619,1782052239000,-500.0,0.00016577,2]
[425966626,1782052239000,-500.0,0.00016577,2]
[425966621,1782052239000,-500.0,0.00016577,2]
[425966620,1782052239000,-503.62266987,0.00016577,2]
[425966624,1782052239000,-500.0,0.00016577,2]
[425966622,1782052239000,-500.0,0.00016577,2]
[425966623,1782052239000,-500.0,0.00016577,2]
[425966617,1782052239000,-500.0,0.00016577,2]
[425966625,1782052239000,-500.0,0.00016577,2]
[425966627,1782052239000,-500.0,0.00016577,2]
[425966618,1782052239000,-500.0,0.00016577,2]
[425966614,1782052239000,-500.0,0.00016577,2]
[425966659,1782052239000,-500.0,0.00016606,2]
[425966637,1782052239000,-500.0,0.00016578,2]
[425966662,1782052239000,-500.0,0.00016712,2]
[425966692,1782052239000,-500.0,0.00016712,2]
[425966695,1782052239000,-500.0,0.00016712,2]
[425966696,1782052239000,-500.0,0.00016712,2]
[425966697,1782052239000,-500.0,0.00016712,2]
[425966698,1782052239000,-500.0,0.00016712,2]
[425966700,1782052239000,-500.0,0.00016712,2]
[425966699,1782052239000,-500.0,0.00016712,2]
[425966701,1782052239000,-500.0,0.00016712,2]
[425966704,1782052239000,-500.0,0.00016712,2]
[425966706,1782052239000,-500.0,0.00016712,2]
[425966708,1782052239000,-500.0,0.00016712,2]
[425966712,1782052239000,-500.0,0.00016712,2]
[425966713,1782052239000,-221.65,0.00016712,2]
[425966703,1782052239000,-500.0,0.00016712,2]
[425966710,1782052239000,-500.0,0.00016712,2]
[425966721,1782052239000,-500.0,0.00016712,2]
[425966723,1782052239000,-500.0,0.00016712,2]
[425966715,1782052239000,-500.0,0.00016712,2]
[425966719,1782052239000,-500.0,0.00016712,2]
[425966717,1782052239000,-1387.2548,0.00016712,2]
[425966726,1782052239000,-500.0,0.00016712,2]
[425966728,1782052239000,-500.0,0.00016712,2]
[425966730,1782052239000,-500.0,0.00016712,2]
[425966738,1782052239000,-500.0,0.00016712,2]
[425966740,1782052239000,-600.0,0.00016766,2]
[425966732,1782052239000,-500.0,0.00016712,2]
[425966734,1782052239000,-500.0,0.00016712,2]
[425966663,1782052239000,-500.0,0.00016712,2]
[425966724,1782052239000,-559.46322556,0.00016712,2]
[425966693,1782052239000,-500.0,0.00016712,2]
[425966736,1782052239000,-164.89,0.00016712,2]
[425966702,1782052239000,-500.0,0.00016712,2]
[425966694,1782052239000,-500.0,0.00016712,2]
[425966661,1782052239000,-347.23357528,0.00016606,2]
[425966664,1782052239000,-500.0,0.00016712,2]
[425966666,1782052239000,-500.0,0.00016712,2]
[425966668,1782052239000,-500.0,0.00016712,2]
[425966678,1782052239000,-500.0,0.00016712,2]
[425966669,1782052239000,-500.0,0.00016712,2]
[425966671,1782052239000,-500.0,0.00016712,2]
[425966667,1782052239000,-500.0,0.00016712,2]
[425966670,1782052239000,-500.0,0.00016712,2]
[425966675,1782052239000,-368.40362075,0.00016712,2]
[425966673,1782052239000,-534.27101981,0.00016712,2]
[425966677,1782052239000,-599.0175644,0.00016712,2]
[425966676,1782052239000,-500.0,0.00016712,2]
[425966660,1782052239000,-500.0,0.00016606,2]
[425966679,1782052239000,-500.0,0.00016712,2]
[425966689,1782052239000,-500.0,0.00016712,2]
[425966691,1782052239000,-500.0,0.00016712,2]
[425966687,1782052239000,-500.0,0.00016712,2]
[425966688,1782052239000,-500.0,0.00016712,2]
[425966674,1782052239000,-500.0,0.00016712,2]
[425966685,1782052239000,-500.0,0.00016712,2]
[425966684,1782052239000,-500.0,0.00016712,2]
[425966680,1782052239000,-500.0,0.00016712,2]
[425966686,1782052239000,-500.0,0.00016712,2]
[425966682,1782052239000,-500.0,0.00016712,2]
[425966681,1782052239000,-500.0,0.00016712,2]
[425966690,1782052239000,-212.35189791,0.00016712,2]
[425966683,1782052239000,-530.66536063,0.00016712,2]
[425966821,1782052240000,-500.0,0.00016852,2]
[425966819,1782052240000,-500.0,0.00016852,2]
[425966815,1782052240000,-492.63451359,0.00016852,2]
[425966817,1782052240000,-500.0,0.00016852,2]
[425966806,1782052240000,-500.0,0.00016852,2]
[425966813,1782052240000,-500.0,0.00016852,2]
[425966810,1782052240000,-500.0,0.00016852,2]
[425966808,1782052240000,-500.0,0.00016852,2]
[425966804,1782052240000,-501.37944089,0.00016851,2]
[425966802,1782052240000,-500.0,0.00016851,2]
[425966811,1782052240000,-500.0,0.00016852,2]
[425966823,1782052240000,-304.76499674,0.00016852,2]
[425966829,1782052240000,-500.0,0.00016852,2]
[425966825,1782052240000,-500.0,0.00016852,2]
[425966827,1782052240000,-500.0,0.00016852,2]
[425966832,1782052240000,-500.0,0.00016986,2]
[425966836,1782052240000,-500.0,0.00016986,2]
[425966834,1782052240000,-520.36357014,0.00016986,2]
[425966838,1782052240000,-500.0,0.00016986,2]
[425966840,1782052240000,-500.0,0.00016986,2]
[425966842,1782052240000,-500.0,0.00016986,2]
[425966844,1782052240000,-500.0,0.00016986,2]
[425966848,1782052240000,-500.0,0.00016986,2]
[425966798,1782052240000,-500.0,0.00016851,2]
[425966846,1782052240000,-500.0,0.00016986,2]
[425966831,1782052240000,-215.77507392,0.00016852,2]
[425966800,1782052240000,-500.0,0.00016851,2]
[425966781,1782052240000,-500.0,0.00016851,2]
[425966778,1782052240000,-500.0,0.00016851,2]
[425966850,1782052240000,-500.0,0.00016986,2]
[425966747,1782052240000,-1000.0,0.00016851,2]
[425966745,1782052240000,-500.0,0.00016851,2]
[425966744,1782052240000,-500.0,0.00016851,2]
[425966742,1782052240000,-500.0,0.00016851,2]
[425966749,1782052240000,-500.0,0.00016851,2]
[425966751,1782052240000,-500.0,0.00016851,2]
[425966755,1782052240000,-500.0,0.00016851,2]
[425966760,1782052240000,-500.0,0.00016851,2]
[425966765,1782052240000,-500.0,0.00016851,2]
[425966767,1782052240000,-500.0,0.00016851,2]
[425966753,1782052240000,-500.0,0.00016851,2]
[425966796,1782052240000,-500.0,0.00016851,2]
[425966763,1782052240000,-500.0,0.00016851,2]
[425966785,1782052240000,-500.0,0.00016851,2]
[425966770,1782052240000,-500.0,0.00016851,2]
[425966783,1782052240000,-500.0,0.00016851,2]
[425966787,1782052240000,-500.0,0.00016851,2]
[425966789,1782052240000,-500.0,0.00016851,2]
[425966793,1782052240000,-500.0,0.00016851,2]
[425966791,1782052240000,-500.0,0.00016851,2]
[425966794,1782052240000,-500.0,0.00016851,2]
[425966774,1782052240000,-500.0,0.00016851,2]
[425966780,1782052240000,-300.0,0.00016851,2]
[425966772,1782052240000,-500.0,0.00016851,2]
[425966776,1782052240000,-500.0,0.00016851,2]
[425966769,1782052240000,-1000.0,0.00016851,2]
[425966852,1782052240000,-507.59499527,0.00016986,2]
[425966884,1782052240000,-500.0,0.00017125,2]
[425966854,1782052240000,-344.22,0.00016986,2]
[425966898,1782052240000,-5900.70698786,0.0001725,2]
[425966904,1782052240000,-500.0,0.00017534,2]
[425966906,1782052240000,-325.30737044,0.00017662,2]
[425966905,1782052240000,-186.0,0.00017654,2]
[425966910,1782052240000,-500.0,0.00017663,2]
[425966908,1782052240000,-500.0,0.00017663,2]
[425966907,1782052240000,-500.0,0.00017663,2]
[425966903,1782052240000,-160.0,0.00017411,2]
[425966914,1782052240000,-217.39997712,0.00017702,7]
[425966917,1782052240000,-500.0,0.00017851,2]
[425966912,1782052240000,-500.0,0.00017663,2]
[425966913,1782052240000,-500.0,0.00017663,2]
[425966897,1782052240000,-162.48658476,0.00017225,2]
[425966916,1782052240000,-500.0,0.00017808,2]
[425966856,1782052240000,-500.0,0.00016986,2]
[425966911,1782052240000,-500.0,0.00017663,2]
[425966915,1782052240000,-226.7634,0.000178,2]
[425966919,1782052240000,-203.71472788,0.00017851,2]
[425966921,1782052240000,-500.0,0.00017851,2]
[425966920,1782052240000,-500.0,0.00017851,2]
[425966926,1782052240000,-500.0,0.00017851,2]
[425966928,1782052240000,-500.0,0.00017851,2]
[425966923,1782052240000,-500.0,0.00017851,2]
[425966925,1782052240000,-500.0,0.00017851,2]
[425966927,1782052240000,-500.0,0.00017851,2]
[425966924,1782052240000,-500.0,0.00017851,2]
[425966918,1782052240000,-500.0,0.00017851,2]
[425966895,1782052240000,-500.0,0.00017126,2]
[425966922,1782052240000,-500.0,0.00017851,2]
[425966901,1782052240000,-169.617432,0.00017286,2]
[425966860,1782052240000,-563.08,0.00016986,2]
[425966862,1782052240000,-500.0,0.00016986,2]
[425966863,1782052240000,-500.0,0.00016986,2]
[425966865,1782052240000,-500.0,0.00016986,2]
[425966867,1782052240000,-500.0,0.00016986,2]
[425966881,1782052240000,-500.0,0.00017125,2]
[425966886,1782052240000,-500.0,0.00017125,2]
[425966869,1782052240000,-500.0,0.00017125,2]
[425966883,1782052240000,-500.0,0.00017125,2]
[425966885,1782052240000,-500.0,0.00017125,2]
[425966902,1782052240000,-160.0,0.00017411,2]
[425966888,1782052240000,-199.18838719,0.00017125,2]
[425966887,1782052240000,-500.0,0.00017125,2]
[425966858,1782052240000,-500.0,0.00016986,2]
[425966873,1782052240000,-500.0,0.00017125,2]
[425966899,1782052240000,-500.0,0.0001726,2]
[425966900,1782052240000,-500.0,0.0001726,2]
[425966896,1782052240000,-500.0,0.00017126,2]
[425966879,1782052240000,-500.0,0.00017125,2]
[425966894,1782052240000,-215.35513661,0.00017126,2]
[425966893,1782052240000,-500.0,0.00017125,2]
[425966892,1782052240000,-500.0,0.00017125,2]
[425966889,1782052240000,-500.0,0.00017125,2]
[425966877,1782052240000,-500.0,0.00017125,2]
[425966871,1782052240000,-500.0,0.00017125,2]
[425966875,1782052240000,-1000.0,0.00017125,2]
[425966890,1782052240000,-420.10093093,0.00017125,2]
[425966929,1782052241000,-500.0,0.00017851,2]
[425966933,1782052241000,-500.0,0.00017937,2]
[425966930,1782052241000,-500.0,0.00017851,2]
[425966932,1782052241000,-377.10797957,0.00017851,2]
[425966931,1782052241000,-500.0,0.00017851,2]
[425966937,1782052241000,-500.0,0.00017937,2]
[425966938,1782052241000,-153.72882096,0.00018052,2]
[425966936,1782052241000,-500.0,0.00017937,2]
[425966940,1782052241000,-5391.6567776,0.00018163,2]
[425966939,1782052241000,-500.0,0.00018082,2]
[425966935,1782052241000,-500.0,0.00017937,2]
[425966934,1782052241000,-500.0,0.00017937,2]
[425966952,1782052243000,-256.2,0.00018163,2]
[425967140,1782052248000,-483.36168864,0.00018468,2]
[425967141,1782052248000,-153.91676885,0.00018468,2]
[425967139,1782052248000,-195.28379013,0.00018468,2]
[425967144,1782052248000,-171.08116554,0.00018468,2]
[425967145,1782052248000,-169.56023506,0.00018468,2]
[425967138,1782052248000,-361.85901857,0.00018468,2]
[425967142,1782052248000,-158.50470054,0.00018468,2]
[425967146,1782052248000,-180.2033397,0.00018468,2]
[425967143,1782052248000,-167.54357366,0.00018468,2]
[425967137,1782052248000,-170.8178982,0.00018468,2]
[425967134,1782052248000,-504.1131249,0.00018442,2]
[425967136,1782052248000,-168.50996299,0.00018468,2]
[425967149,1782052248000,-500.0,0.0001863,2]
[425967131,1782052248000,-500.0,0.00018356,2]
[425967132,1782052248000,-151.0,0.00018377,2]
[425967130,1782052248000,-157.0,0.00018274,3]
[425967129,1782052248000,-516.0,0.00018211,2]
[425967127,1782052248000,-500.0,0.00018211,2]
[425967128,1782052248000,-563.48,0.00018211,2]
[425967126,1782052248000,-252.85021026,0.00018163,2]
[425967135,1782052248000,-215.8868751,0.00018442,2]
[425967147,1782052248000,-157.95564465,0.00018468,2]
[425967133,1782052248000,-398.44685072,0.00018377,2]
[425967158,1782052248000,-204.41789244,0.00018896,2]
[425967148,1782052248000,-169.617432,0.00018498,2]
[425967167,1782052248000,-196.320401,0.00019012,2]
[425967171,1782052248000,-372.9242503,0.00019075,2]
[425967168,1782052248000,-232.640802,0.00019012,2]
[425967170,1782052248000,-2566.25370989,0.00019075,2]
[425967166,1782052248000,-160.0,0.00019012,2]
[425967164,1782052248000,-160.101554,0.00019012,2]
[425967165,1782052248000,-242.596825,0.00019012,2]
[425967159,1782052248000,-500.0,0.00018904,2]
[425967152,1782052248000,-730.22014634,0.00018769,2]
[425967169,1782052248000,-331.54017724,0.0001906,2]
[425967160,1782052248000,-12192.32876108,0.00019,3]
[425967162,1782052248000,-160.0,0.00019012,2]
[425967154,1782052248000,-360.88471217,0.00018769,2]
[425967150,1782052248000,-154.929,0.00018717,2]
[425967155,1782052248000,-641.57282164,0.00018769,2]
[425967161,1782052248000,-240.746274,0.00019012,2]
[425967151,1782052248000,-405.67785908,0.00018769,2]
[425967153,1782052248000,-1298.16914905,0.00018769,2]
[425967163,1782052248000,-160.050777,0.00019012,2]
[425967156,1782052248000,-184.37336072,0.00018769,2]
[425967157,1782052248000,-578.32421412,0.00018784,2]
[425967173,1782052276000,166.0,0.0001,2]
[425967213,1782053431000,-1844.69893967,0.00015216,2]
[425967315,1782053438000,-166.31020367,0.00018459,2]
[425967300,1782053438000,-1224.56942013,0.00018413,2]
[425967308,1782053438000,-902.72795298,0.00018413,2]
[425967306,1782053438000,-1913.38971895,0.00018413,2]
[425967313,1782053438000,-160.0,0.00018458,2]
[425967311,1782053438000,-160.0,0.00018458,2]
[425967302,1782053438000,-1001.45507628,0.00018413,2]
[425967298,1782053438000,-688.82029882,0.00018413,2]
[425967296,1782053438000,-382.67794379,0.00018413,2]
[425967294,1782053438000,-158.0,0.00018301,3]
[425967289,1782053438000,-186.0,0.0001802,2]
[425967291,1782053438000,-188.7,0.000181,2]
[425967287,1782053438000,-300.0,0.00017045,2]
[425967317,1782053438000,-355.60872643,0.00018459,2]
[425967304,1782053438000,-239.40810692,0.00018413,2]
[425967321,1782053438000,-192.67081244,0.00018459,2]
[425967285,1782053438000,-3155.30106033,0.00015216,2]
[425967323,1782053438000,-475.01271402,0.00018459,2]
[425967349,1782053438000,-7.6006188,0.0001923,2]
[425967348,1782053438000,-385.34162487,0.0001923,2]
[425967347,1782053438000,-383.82141296,0.0001923,2]
[425967346,1782053438000,-686.21195495,0.0001923,2]
[425967344,1782053438000,-332.62040733,0.0001923,2]
[425967345,1782053438000,-25.00549791,0.0001923,2]
[425967343,1782053438000,-500.0,0.00019229,2]
[425967319,1782053438000,-191.91070648,0.00018459,2]
[425967336,1782053438000,-164.00654266,0.00018459,2]
[425967334,1782053438000,-155.1584902,0.00018459,2]
[425967332,1782053438000,-162.79266067,0.00018459,2]
[425967326,1782053438000,-163.80729851,0.00018459,2]
[425967328,1782053438000,-175.44797379,0.00018459,2]
[425967338,1782053438000,-167.46945204,0.00018459,2]
[425967330,1782053438000,-155.22731988,0.00018459,2]
[425967340,1782053438000,-200.0,0.000191,2]
[425967354,1782053440000,-327.61459702,0.0001923,2]
[425967355,1782053440000,-350.89594759,0.0001923,2]
[425967353,1782053440000,-942.42480923,0.0001923,2]
[425967357,1782053440000,-325.58532135,0.0001923,2]
[425967359,1782053440000,-328.01308532,0.0001923,2]
[425967358,1782053440000,-310.31698039,0.0001923,2]
[425967356,1782053440000,-310.45463977,0.0001923,2]
[425967361,1782053440000,-2752.52591409,0.00019499,2]
[425967364,1782053440000,-154.80363676,0.000195,2]
[425967363,1782053440000,-154.08881317,0.000195,2]
[425967362,1782053440000,-154.08881317,0.000195,2]
[425967360,1782053440000,-334.93890408,0.0001923,2]
[425967365,1782053440000,-203.84853806,0.00019503,2]
[425967385,1782053446000,-2500.2236952,0.00019037,2]
[425967384,1782053446000,-1201.46140095,0.00019037,2]
[425967387,1782053838000,1082.76818532,0.0001,2]
[425967388,1782053859000,31317.64740207,7.6e-05,2]
[425967390,1782054053000,-4040.18230492,0.000118,5]
[425967394,1782054460000,-532.2226092,0.00010999,2]
[425967395,1782054461000,-357.50802954,0.00010999,2]
[425967396,1782054461000,-325.37338204,0.00010999,2]
[425967397,1782054462000,-302.76163202,0.00010999,2]
[425967398,1782054463000,-285.21233772,0.00010999,2]
[425967399,1782054464000,-373.76540452,0.00010999,2]
[425967411,1782054591000,-199.53298916,0.00010889,2]
[425967412,1782054592000,-213.47024934,0.00010889,2]
[425967413,1782054593000,-152.0,0.00010889,2]
[425967414,1782054594000,-499.89026345,0.00010889,2]
[425967415,1782054595000,-205.01718453,0.00010889,2]
[425967416,1782054596000,-500.0,0.00010889,2]
[425967417,1782054597000,-221.89056234,0.00010889,2]
[425967418,1782054598000,-239.64878799,0.00010889,2]
[425967419,1782054601000,-357.79190872,0.0001078,2]
[425967420,1782054602000,-207.22048828,0.0001078,2]
[425967421,1782054603000,-391.16871995,0.0001078,2]
[425967422,1782054604000,-715.97383072,0.0001078,2]
[425967458,1782054632000,-650.65771603,0.0001078,2]
[425967520,1782054638000,-337.18172879,0.00018454,2]
[425967526,1782054638000,-153.14397921,0.00018454,2]
[425967519,1782054638000,-181.66473227,0.00018454,2]
[425967521,1782054638000,-181.9662426,0.00018454,2]
[425967524,1782054638000,-196.17874083,0.00018454,2]
[425967518,1782054638000,-156.86305341,0.00018454,2]
[425967516,1782054638000,-194.96359123,0.00018454,2]
[425967515,1782054638000,-160.0,0.00018268,2]
[425967507,1782054638000,-724.15141995,0.00010999,2]
[425967514,1782054638000,-160.0,0.00018268,2]
[425967509,1782054638000,-567.90634422,0.00013,2]
[425967513,1782054638000,-169.617432,0.00018239,2]
[425967510,1782054638000,-174.88824954,0.00014736,2]
[425967512,1782054638000,-186.0,0.00018063,2]
[425967511,1782054638000,-734.90200139,0.00015,3]
[425967508,1782054638000,-174.96976961,0.000118,2]
[425967505,1782054638000,-1214.43950261,0.0001078,2]
[425967506,1782054638000,-2768.54996319,0.00010889,2]
[425967523,1782054638000,-173.05967617,0.00018454,2]